[Event "CCT Chessable Masters D-III 2024"]
[Site "Online"]
[Date "2024.02.02"]
[Round "2"]
[White "Grischuk, Alexander"]
[Black "Rakhmanov_Aleksandr"]
[Result "0-1"]
[ECO "A54"]
[WhiteElo "2732"]
[BlackElo "2630"]
[Annotator "RC"]
[PlyCount "148"]
[EventDate "2024.01.12"]
[EventType "k.o."]
[EventCountry "NET"]
[SourceTitle "playchess.com"]
[Source "ChessBase"]
[SourceQuality "1"]
[TimeControl "600+2"]

1. d4 {[%emt 0:00:06]} Nf6 {[%emt 0:00:04]} 2. c4 {[%emt 0:00:01]} d6 {[%emt 0:00:01]} 3. Nc3 {[%emt 0:00:02]} e5 {[%emt 0:00:01]} 4. Nf3 {[%emt 0:00:01]} e4 {[%emt 0:00:01]} 5. Ng5 {[%emt 0:00:02]} Qe7 {[%emt 0:00:01]} 6. Qc2 {[%emt 0:00:03]} Nc6 {[%emt 0:00:02]} 7. Be3 {[%emt 0:00:03]} Bf5 {[%emt 0:00:02]} 8. Nd5 {[%emt 0:00:11]} Nxd5 {[%emt 0:00:01]} 9. cxd5 {[%emt 0:00:04]} Nd8 {[%emt 0:00:08]} 10. g4 {[%emt 0:00:25]} Bxg4 {[%emt 0:00:04]} 11. Nxe4 {[%emt 0:00:33]} Bh5 {[%emt 0:01:06]} 12. h4 {[%emt 0:02:55]} Bg6 {[%emt 0:00:08]} 13. f3 {[%emt 0:00:23]} c6 {[%emt 0:00:54]} 14. dxc6 {[%emt 0:01:06]} Nxc6 {[%emt 0:00:30]} 15. h5 {[%emt 0:00:04]} Bxe4 {[%emt 0:00:08]} 16. fxe4 {[%emt 0:00:46]} Qd8 {[%emt 0:01:27]} 17. O-O-O {[%emt 0:00:34]} Be7 {[%emt 0:01:09]} 18. Kb1 {[%emt 0:00:04]} Bg5 {[%emt 0:00:12]} 19. Bf2 {[%emt 0:00:20]} h6 {[%emt 0:00:09]} 20. e3 {[%emt 0:00:05]} O-O {[%emt 0:00:02]} 21. Bc4 {[%emt 0:02:00]} Rc8 {[%emt 0:00:09]} 22. Qd3 {[%emt 0:00:00]} a6 {[%emt 0:01:13]} 23. a3 {[%emt 0:00:42]} b5 {[%emt 0:00:08]} 24. Bd5 {[%emt 0:00:07]} b4 {[%emt 0:00:11]} 25. a4 {[%emt 0:00:01]} b3 {[%emt 0:00:40]} 26. Rc1 {[%emt 0:00:05]} Nb4 {[%emt 0:00:05]} 27. Qxb3 {[%emt 0:00:01]} Rb8 {[%emt 0:00:10]} 28. Qc3 {[%emt 0:00:11]} Qe8 {[%emt 0:00:37]} 29. b3 {[%emt 0:00:03]} Nxd5 {[%emt 0:00:10]} 30. exd5 {[%emt 0:00:00]} Qe4+ {[%emt 0:00:01]} 31. Ka2 {[%emt 0:00:01]} Qxd5 {[%emt 0:00:09]} 32. Qc4 {[%emt 0:00:00]} Qg2 {[%emt 0:00:04]} 33. Qe2 {[%emt 0:00:02]} Rfe8 {[%emt 0:00:08]} 34. Rhg1 {[%emt 0:00:01]} Qd5 {[%emt 0:00:11]} 35. Rc4 {[%emt 0:00:01]} f5 {[%emt 0:00:22]} 36. Qd3 {[%emt 0:00:07]} Kh7 {[%emt 0:00:05]} 37. Rf1 {[%emt 0:00:02]} Re4 {[%emt 0:00:03]} 38. Bg1 {[%emt 0:00:01]} Rbe8 {[%emt 0:00:01]} 39. Rc2 {[%emt 0:00:03]} Kh8 {[%emt 0:00:17]} 40. Qxa6 {[%emt 0:00:03]} Bxe3 {[%emt 0:00:03]} 41. Bxe3 {[%emt 0:00:00]} Rxe3 {[%emt 0:00:00]} 42. Qc4 {[%emt 0:00:02]} Qe4 {[%emt 0:00:07]} 43. d5 {[%emt 0:00:03]} Qe5 {[%emt 0:00:10]} 44. Qf4 {[%emt 0:00:02]} Qxd5 {[%emt 0:00:05]} 45. Qc4 {[%emt 0:00:00]} Qe5 {[%emt 0:00:04]} 46. Rd1 {[%emt 0:00:03]} f4 {[%emt 0:00:03]} 47. Rd5 {[%emt 0:00:01]} Qe6 {[%emt 0:00:03]} 48. Qd4 {[%emt 0:00:05]} Re2 {[%emt 0:00:03]} 49. Rxe2 {[%emt 0:00:02]} Qxe2+ {[%emt 0:00:00]} 50. Ka3 {[%emt 0:00:00]} f3 {[%emt 0:00:02]} 51. Rxd6 {[%emt 0:00:01]} Qe3 {[%emt 0:00:07]} 52. Qxe3 {[%emt 0:00:03]} Rxe3 {[%emt 0:00:00]} 53. Rd8+ {[%emt 0:00:02]} Kh7 {[%emt 0:00:00]} 54. Rf8 {[%emt 0:00:01]} g5 {[%emt 0:00:01]} 55. hxg6+ {[%emt 0:00:00]} Kg7 {[%emt 0:00:00]} 56. Rf4 {[%emt 0:00:02]} Kxg6 {[%emt 0:00:01]} 57. a5 {[%emt 0:00:01]} Kg5 {[%emt 0:00:01]} 58. Rf8 {[%emt 0:00:01]} Kg4 {[%emt 0:00:00]} 59. Ka4 {[%emt 0:00:06]} h5 {[%emt 0:00:01]} 60. a6 {[%emt 0:00:02]} Re1 {[%emt 0:00:02]} 61. Kb5 {[%emt 0:00:04]} h4 {[%emt 0:00:02]} 62. a7 {[%emt 0:00:03]} Ra1 {[%emt 0:00:02]} 63. a8=Q {[%emt 0:00:01]} Rxa8 {[%emt 0:00:00]} 64. Rxa8 {[%emt 0:00:00]} f2 {[%emt 0:00:09]} 65. Ra1 {[%emt 0:00:05]} Kf3 {[%emt 0:00:03]} 66. Kc4 {[%emt 0:00:01]} Ke2 {[%emt 0:00:01]} 67. Ra2+ {[%emt 0:00:01]} Ke3 {[%emt 0:00:02]} 68. Ra1 {[%emt 0:00:01]} Ke2 {[%emt 0:00:01]} 69. Ra2+ {[%emt 0:00:03]} Kf3 {[%emt 0:00:04]} 70. Ra1 {[%emt 0:00:00]} Kg2 {[%emt 0:00:01]} 71. b4 {[%emt 0:00:06]} h3 {[%emt 0:00:02]} 72. b5 {[%emt 0:00:01]} h2 {[%emt 0:00:00]} 73. b6 {[%emt 0:00:03]} h1=Q {[%emt 0:00:00]} 74. Rxh1 {[%emt 0:00:01]} Kxh1 {[%emt 0:00:01]} 0-1

[Event "CCT Chessable Masters D-III 2024"]
[Site "Online"]
[Date "2024.02.02"]
[Round "2"]
[White "Grischuk, Alexander"]
[Black "Rakhmanov_Aleksandr"]
[Result "1-0"]
[ECO "D02"]
[WhiteElo "2732"]
[BlackElo "2633"]
[Annotator "TA"]
[PlyCount "71"]
[EventDate "2024.01.12"]
[EventType "k.o."]
[EventCountry "NET"]
[SourceTitle "playchess.com"]
[Source "ChessBase"]
[SourceQuality "1"]
[TimeControl "600+2"]

{[%evp 9,71,2,5,-6,-2,0,0,0,0,-3,0,-7,0,-7,-4,-8,-8,-11,1,0,9,0,39,4,35,35,27,30,48,43,37,-50,14,0,18,15,14,-41,0,-13,113,120,123,127,195,178,204,197,206,137,285,274,263,216,303,295,289,300,270,291,287,258,721,711]} 1. d4 {[%emt 0:00:04]} d5 {[%emt 0:04:08]} 2. Nf3 {[%emt 0:00:03]} e6 {[%emt 0:00:03]} 3. Bf4 {[%emt 0:00:20]} Bd6 {[%emt 0:00:04]} 4. e3 {[%emt 0:00:03]} Bxf4 {[%emt 0:00:03]} 5. exf4 {[%emt 0:00:02]} Qd6 {[%emt 0:00:03]} 6. Qc1 {[%emt 0:00:17]} b6 {[%emt 0:00:03]} 7. c3 {[%emt 0:00:38]} Ba6 {[%emt 0:00:03]} 8. Bxa6 {[%emt 0:00:05] The position is equal.} Nxa6 {[%emt 0:00:02]} 9. Na3 {[%emt 0:00:15]} Ne7 {[%emt 0:00:08]} 10. Nc2 {[%emt 0:00:08]} c5 {[%emt 0:00:05]} 11. g3 {[%emt 0:00:17]} Rc8 {[%emt 0:00:05]} 12. O-O {[%emt 0:00:08]} O-O {[%emt 0:00:04]} 13. Re1 {[%emt 0:00:05]} Rc7 {[%emt 0:00:04]} 14. Qd2 {[%emt 0:00:07]} b5 {[%emt 0:00:03]} 15. a3 {[%emt 0:00:06]} Qb6 {[%emt 0:00:10]} 16. Kg2 {[%emt 0:00:49]} Rfc8 {[%emt 0:00:16]} 17. Re2 {[%emt 0:00:09]} h6 {[%emt 0:00:06]} 18. h4 {[%emt 0:00:10]} cxd4 {[%emt 0:00:27]} 19. Ncxd4 {[%emt 0:00:03][%cal Of4f5]} Nc5 {[%emt 0:00:03]} 20. g4 {[%emt 0:00:23]} (20. f5 $14) 20... a5 {[%emt 0:00:11]} (20... Ne4 $15 21. Qe1 Ng6 22. Rxe4 dxe4 23. Qxe4 Qd6) 21. h5 {[%emt 0:00:09]} b4 {[%emt 0:00:07]} 22. cxb4 {[%emt 0:00:08]} axb4 {[%emt 0:00:03]} 23. a4 {[%emt 0:00:19]} (23. Qxb4 $11 Qxb4 24. axb4) 23... Ne4 {[%emt 0:00:08]} 24. Qe3 {[%emt 0:00:04]} Nc6 {[%emt 0:00:11] [#] Prevents Ne5} (24... Qa6 $11 {keeps the balance.}) 25. Nb5 $1 $16 {[%emt 0:00:19]} Qxe3 {[%emt 0:00:12]} 26. fxe3 {[%emt 0:00:02]} Rd7 {[%emt 0:00:20] [#]} (26... Rb7 $16 {was called for.}) 27. Rc1 $1 $36 {[%emt 0:00:04][%mdl 2048] White is on the roll.} Ne7 {[%emt 0:00:19]} 28. Rec2 {[%emt 0:00:54]} Ra8 {[%emt 0:00:07]} 29. Ne5 {[%emt 0:00:09]} Rdd8 {[%emt 0:00:19] Loses the game.} (29... b3 $16) 30. Rc7 {[%emt 0:00:03]} Kf8 {[%emt 0:00:03]} 31. b3 {[%emt 0:00:08]} Nc3 {[%emt 0:00:24]} (31... Rac8 {keeps fighting.} 32. Nd7+ Ke8) 32. Nxc3 {[%emt 0:00:07]} bxc3 {[%emt 0:00:02]} 33. R1xc3 {[%emt 0:00:05] Black must now prevent Rb7.} d4 {[%emt 0:00:02]} 34. exd4 {[%emt 0:00:04]} Rxd4 {[%emt 0:00:02]} 35. Kg3 {[%emt 0:00:17][%cal Oc7e7] Rxe7! is the strong threat.} Rb4 $2 {[%emt 0:00:14] [#]} (35... Rd1 36. Rb7 Nd5 37. Rxf7+ Kg8) 36. Rxe7 $1 {[%emt 0:00:05][%mdl 512] Weighted Error Value: White=0.17 (very precise) /Black=0.35.  Mistake:       	White=2     	Black=6      Inaccurate:     	White=2     	Black=3      OK:         	White=7     	Black=8      Strong:       	White=2     	---        Brilliant:      	White=1     	---} 1-0

[Event "CCT Chessable Masters D-III 2024"]
[Site "Online"]
[Date "2024.02.02"]
[Round "2"]
[White "Sarana, Alexey"]
[Black "kpio91"]
[Result "1-0"]
[ECO "E49"]
[WhiteElo "2695"]
[BlackElo "2442"]
[Annotator "NA"]
[PlyCount "81"]
[EventDate "2024.01.12"]
[EventType "k.o."]
[EventCountry "NET"]
[SourceTitle "playchess.com"]
[Source "ChessBase"]
[SourceQuality "1"]
[TimeControl "600+2"]

1. d4 {[%emt 0:00:02]} Nf6 {[%emt 0:00:03]} 2. c4 {[%emt 0:00:01]} e6 {[%emt 0:00:02]} 3. Nc3 {[%emt 0:00:00]} Bb4 {[%emt 0:00:01]} 4. e3 {[%emt 0:00:01]} O-O {[%emt 0:00:01]} 5. Bd3 {[%emt 0:00:00]} d5 {[%emt 0:00:02]} 6. a3 {[%emt 0:00:01]} Bxc3+ {[%emt 0:00:01]} 7. bxc3 {[%emt 0:00:00]} c6 {[%emt 0:00:01]} 8. Ne2 {[%emt 0:00:14]} b6 {[%emt 0:00:02]} 9. f3 {[%emt 0:00:01]} Ba6 {[%emt 0:00:01]} 10. cxd5 {[%emt 0:00:00]} cxd5 {[%emt 0:00:14]} 11. e4 {[%emt 0:00:01]} Qc8 {[%emt 0:00:18]} 12. Bg5 {[%emt 0:00:09]} Bxd3 {[%emt 0:00:24]} 13. Qxd3 {[%emt 0:00:01]} Nbd7 {[%emt 0:00:01]} 14. e5 {[%emt 0:00:07]} h6 {[%emt 0:00:16]} 15. Bxf6 {[%emt 0:02:36]} gxf6 {[%emt 0:00:03]} 16. f4 {[%emt 0:00:06]} Kh8 {[%emt 0:01:15]} 17. O-O {[%emt 0:00:31]} f5 {[%emt 0:00:08]} 18. Kh1 {[%emt 0:00:10]} Rg8 {[%emt 0:00:01]} 19. a4 {[%emt 0:00:11]} Nb8 {[%emt 0:00:30]} 20. Rfc1 {[%emt 0:01:01]} Nc6 {[%emt 0:00:14]} 21. c4 {[%emt 0:00:12]} Qd7 {[%emt 0:00:57]} 22. c5 {[%emt 0:00:04]} Rab8 {[%emt 0:00:05]} 23. Rc3 {[%emt 0:00:11]} bxc5 {[%emt 0:00:12]} 24. Rxc5 {[%emt 0:00:01]} Rb2 {[%emt 0:00:28]} 25. Rac1 {[%emt 0:00:08]} Nd8 {[%emt 0:02:28]} 26. R5c2 {[%emt 0:00:25]} Rxc2 {[%emt 0:00:15]} 27. Qxc2 {[%emt 0:00:00]} Qb7 {[%emt 0:00:02]} 28. h3 {[%emt 0:00:04]} Qa6 {[%emt 0:00:06]} 29. Kh2 {[%emt 0:00:05]} Nc6 {[%emt 0:00:04]} 30. Qd1 {[%emt 0:01:00]} Qb6 {[%emt 0:00:37]} 31. Rb1 {[%emt 0:00:18]} Nb4 {[%emt 0:00:29]} 32. Ng3 {[%emt 0:00:07]} a5 {[%emt 0:00:03]} 33. Nh5 {[%emt 0:00:17]} Rc8 {[%emt 0:01:05]} 34. Nf6 {[%emt 0:00:01]} Rc3 {[%emt 0:00:19]} 35. Qh5 {[%emt 0:00:01]} Kg7 {[%emt 0:00:01]} 36. Ne8+ {[%emt 0:00:01]} Kf8 {[%emt 0:00:08]} 37. Nd6 {[%emt 0:00:01]} Qc7 {[%emt 0:00:07]} 38. Qxh6+ {[%emt 0:00:02]} Ke7 {[%emt 0:00:03]} 39. Qf6+ {[%emt 0:00:06]} Kf8 {[%emt 0:00:03]} 40. Qh8+ {[%emt 0:00:01]} Ke7 {[%emt 0:00:02]} 41. Qe8# {[%emt 0:00:01]} 1-0

[Event "CCT Chessable Masters D-III 2024"]
[Site "Online"]
[Date "2024.02.02"]
[Round "2"]
[White "Matlakov, Maxim"]
[Black "Lysyj, Igor"]
[Result "1-0"]
[ECO "E05"]
[WhiteElo "2662"]
[BlackElo "2589"]
[Annotator "TA"]
[PlyCount "87"]
[EventDate "2024.01.12"]
[EventType "k.o."]
[EventCountry "NET"]
[SourceTitle "playchess.com"]
[Source "ChessBase"]
[SourceQuality "1"]
[TimeControl "600+2"]

{[%evp 25,87,-6,-4,-33,-35,-62,-72,-84,-68,-77,-78,-71,-69,-136,-124,-137,-127,-131,-34,-36,-55,-55,-28,0,18,19,20,0,0,0,143,150,140,140,148,145,133,128,220,196,217,217,216,216,383,375,372,364,427,299,292,292,406,400,379,302,374,375,334,326,479,458,880,852]} 1. d4 {[%emt 0:00:02]} d5 {[%emt 0:00:05]} 2. c4 {[%emt 0:00:06]} e6 {[%emt 0:00:00]} 3. Nf3 {[%emt 0:00:01]} Nf6 {[%emt 0:00:02]} 4. g3 {[%emt 0:00:02]} Be7 {[%emt 0:00:01]} 5. Bg2 {[%emt 0:00:01]} O-O {[%emt 0:00:01]} 6. O-O {[%emt 0:00:01]} dxc4 {[%emt 0:00:01]} 7. Qc2 {[%emt 0:00:00]} a6 {[%emt 0:00:02]} 8. a4 $1 {[%emt 0:00:01] 8.a4 scores better than 8.Qxc4.} Bd7 {[%emt 0:00:01]} 9. Bg5 {[%emt 0:00:08] E05: Open Catalan: 5 Nf3 Be7.} Bc6 {[%emt 0:00:06]} 10. Rd1 {[%emt 0:00:01]} b5 {[%emt 0:00:06]} 11. Bxf6 {[%emt 0:00:14]} Bxf6 {[%emt 0:00:03]} 12. Nc3 {[%emt 0:00:01]} Qe8 {[%emt 0:00:04]} 13. h4 {[%emt 0:00:01]} g6 {[%emt 0:00:08]} 14. h5 {[%emt 0:00:04]} Nd7 {[%emt 0:00:21]} 15. h6 {[%emt 0:00:13]} Nb6 {[%emt 0:00:43]} 16. a5 {[%emt 0:00:04]} Nd7 $146 {[%emt 0:00:04]} ({Predecessor:} 16... Nd5 17. Ne4 Be7 18. Ne5 Nb4 19. Qd2 Bxe4 20. Bxe4 Rd8 21. Qc1 f6 22. Nf3 g5 {0-1 Abdusattorov,N (2725)-So,W (2769) Aimchess Rapid Div 1 W 2023 (1.3)}) 17. b3 {[%emt 0:00:08]} cxb3 {[%emt 0:00:07]} 18. Qxb3 {[%emt 0:00:02]} Bb7 {[%emt 0:00:03]} 19. Qc2 {[%emt 0:01:42]} (19. Ne5 $1 $15 Bxg2 20. Nxd7 Qxd7 21. Kxg2) 19... c5 $17 {[%emt 0:00:25]} 20. Ne4 {[%emt 0:00:33] [#]} Bxe4 $1 {[%emt 0:00:31]} 21. Qxe4 {[%emt 0:00:01]} cxd4 {[%emt 0:00:07]} (21... Qe7 $17 {...c4 is the strong threat.} 22. Qb7 Rfb8) 22. Nxd4 $15 {[%emt 0:00:07]} Rc8 {[%emt 0:00:08]} 23. Rac1 {[%emt 0:00:07]} Rxc1 {[%emt 0:01:07]} 24. Rxc1 {[%emt 0:00:00]} Bg5 {[%emt 0:00:01]} 25. Rc7 {[%emt 0:00:17]} (25. Rc6 Bxh6 26. e3 (26. Rxa6 $2 Nc5 $17) 26... Nb8 $15) 25... Bxh6 {[%emt 0:00:03]} 26. Qh4 {[%emt 0:02:41]} (26. Qb7 {simplifies} Ne5 27. Nc6 Nxc6 28. Rxc6 Bd2 29. Rxa6 h5 30. Ra7) 26... Bg7 $1 {[%emt 0:02:08]} (26... Qd8 $2 27. Qxd8 Rxd8 28. Nc6 $18) 27. Bc6 {[%emt 0:00:03]} g5 {[%emt 0:02:39]} (27... Bxd4 $2 28. Qxd4 (28. Bxd7 $2 Qb8 $19) 28... Qd8 29. Qxd7 $18) (27... Bf6 $1 $11 {remains equal.} 28. Bxd7 Qd8 (28... Bxh4 29. Bxe8 Bf6 30. Bxb5 $14) 29. Nxe6 Bxh4 30. Nxd8 Bxd8) 28. Qxg5 $16 {[%emt 0:00:27]} Qd8 {[%emt 0:00:02]} 29. Qxd8 {[%emt 0:00:31]} (29. Rxd7 $2 Qxg5 30. Bf3 Bxd4 (30... Qc1+ $2 31. Kg2 $19) 31. Rxd4 Qc1+ 32. Kg2 Qa1 33. Rg4+ Kh8 $19) 29... Rxd8 {[%emt 0:00:02]} 30. Nxe6 {[%emt 0:00:01]} ({Don't take} 30. Rxd7 $6 Rxd7 31. Bxd7 Bxd4 $11) 30... fxe6 {[%emt 0:00:02]} 31. Bxd7 {[%emt 0:00:01]} Bf8 {[%emt 0:00:37]} (31... Kf8 $16 {might work better.} 32. Bxe6 Rd1+ 33. Kg2 Rd6 34. Rf7+ Kg8) 32. Ra7 {[%emt 0:00:28]} Kh8 {[%emt 0:00:05]} 33. Bxe6 {[%emt 0:00:06]} Rd6 {[%emt 0:00:02]} 34. Bc8 {[%emt 0:00:44]} b4 $2 {[%emt 0:00:01]} (34... Rd1+ 35. Kg2 Rd2 36. Rxa6 (36. Bxa6 Rxe2 37. Rf7 Bb4 $16) 36... Rxe2) 35. Bxa6 $18 {[%emt 0:00:03]} Rd1+ {[%emt 0:00:19]} 36. Kg2 {[%emt 0:00:01]} Bc5 {[%emt 0:00:02]} 37. Rb7 {[%emt 0:00:19]} Ra1 {[%emt 0:00:03]} 38. Rb5 {[%emt 0:00:12]} Bd6 {[%emt 0:00:02]} 39. Bb7 {[%emt 0:00:14]} Kg7 {[%emt 0:00:10]} 40. Be4 {[%emt 0:00:04]} Ra2 {[%emt 0:00:04]} 41. Bd3 {[%emt 0:00:05]} Kf6 {[%emt 0:00:04]} 42. f4 {[%emt 0:00:03]} h5 {[%emt 0:00:07]} (42... Bc7 $142 43. Rxb4 (43. Bxh7 Rxe2+ 44. Kf3 Ra2 $18) (43. a6 Rxa6 44. Rxb4 Re6 $18) 43... Bxa5) 43. Kf3 {[%emt 0:00:05]} Ra4 {[%emt 0:00:12]} (43... Ra3 $142 44. Rxh5 Ra1) 44. e4 {[%emt 0:00:11]} 1-0

[Event "CCT Chessable Masters D-III 2024"]
[Site "Online"]
[Date "2024.02.02"]
[Round "2"]
[White "MashaPutina"]
[Black "Indjic, Aleksandar"]
[Result "1/2-1/2"]
[ECO "A62"]
[WhiteElo "2640"]
[BlackElo "2595"]
[Annotator "ChessBase"]
[PlyCount "165"]
[EventDate "2024.01.12"]
[EventType "k.o."]
[EventCountry "NET"]
[SourceTitle "playchess.com"]
[Source "ChessBase"]
[SourceQuality "1"]
[TimeControl "600+2"]

1. d4 {[%emt 0:00:07]} Nf6 {[%emt 0:03:06]} 2. c4 {[%emt 0:00:04]} e6 {[%emt 0:00:02]} 3. Nf3 {[%emt 0:00:03]} c5 {[%emt 0:00:03]} 4. d5 {[%emt 0:00:03]} d6 {[%emt 0:00:02]} 5. Nc3 {[%emt 0:00:04]} exd5 {[%emt 0:00:03]} 6. cxd5 {[%emt 0:00:03]} g6 {[%emt 0:00:02]} 7. g3 {[%emt 0:00:03]} Bg7 {[%emt 0:00:03]} 8. Bg2 {[%emt 0:00:02]} O-O {[%emt 0:00:02]} 9. O-O {[%emt 0:00:03]} Re8 {[%emt 0:00:03]} 10. Re1 {[%emt 0:00:03]} h6 {[%emt 0:00:02]} 11. h3 {[%emt 0:00:04]} a6 {[%emt 0:00:04]} 12. a4 {[%emt 0:00:07]} Ne4 {[%emt 0:00:03]} 13. Nxe4 {[%emt 0:00:21]} Rxe4 {[%emt 0:00:02]} 14. Qc2 {[%emt 0:00:03]} Bf5 {[%emt 0:00:12]} 15. g4 {[%emt 0:00:07]} Rxg4 {[%emt 0:00:05]} 16. e4 {[%emt 0:00:03]} Rxg2+ {[%emt 0:00:03]} 17. Kxg2 {[%emt 0:00:03]} Bc8 {[%emt 0:00:04]} 18. Bf4 {[%emt 0:00:10]} b6 {[%emt 0:00:08]} 19. Bg3 {[%emt 0:00:12]} Bb7 {[%emt 0:00:28]} 20. Rad1 {[%emt 0:00:08]} b5 {[%emt 0:00:05]} 21. e5 {[%emt 0:00:26]} dxe5 {[%emt 0:00:03]} 22. Nxe5 {[%emt 0:00:03]} c4 {[%emt 0:00:09]} 23. Kh2 {[%emt 0:00:11]} Nd7 {[%emt 0:00:18]} 24. Nc6 {[%emt 0:00:50]} Qf6 {[%emt 0:00:03]} 25. Qe4 {[%emt 0:00:03]} Nc5 {[%emt 0:00:40]} 26. Qe7 {[%emt 0:00:04]} Bxc6 {[%emt 0:00:38]} 27. Qxc5 {[%emt 0:00:49]} Bd7 {[%emt 0:00:04]} 28. d6 {[%emt 0:00:04]} Bf8 {[%emt 0:00:15]} 29. Re7 {[%emt 0:01:01]} Qf3 {[%emt 0:00:08]} 30. Qd5 {[%emt 0:00:50]} Qxd5 {[%emt 0:00:03]} 31. Rxd5 {[%emt 0:00:03]} Bc6 {[%emt 0:00:03]} 32. Rde5 {[%emt 0:00:59]} Bxe7 {[%emt 0:00:04]} 33. Rxe7 {[%emt 0:00:03]} bxa4 {[%emt 0:00:55]} 34. Rc7 {[%emt 0:00:06]} Bb5 {[%emt 0:00:03]} 35. d7 {[%emt 0:00:07]} Bxd7 {[%emt 0:00:36]} 36. Rxd7 {[%emt 0:00:03]} c3 {[%emt 0:00:03]} 37. bxc3 {[%emt 0:00:05]} a3 {[%emt 0:00:03]} 38. Rd2 {[%emt 0:00:07]} Rc8 {[%emt 0:00:08]} 39. Be5 {[%emt 0:00:04]} g5 {[%emt 0:00:05]} 40. Kg3 {[%emt 0:00:27]} Rc5 {[%emt 0:00:04]} 41. f4 {[%emt 0:00:03]} Kh7 {[%emt 0:00:05]} 42. Ra2 {[%emt 0:00:07]} Ra5 {[%emt 0:00:11]} 43. c4 {[%emt 0:00:27]} Kg6 {[%emt 0:00:04]} 44. Bd6 {[%emt 0:00:04]} Ra4 {[%emt 0:00:03]} 45. c5 {[%emt 0:00:05]} Kf5 {[%emt 0:00:07]} 46. fxg5 {[%emt 0:00:03]} hxg5 {[%emt 0:00:03]} 47. c6 {[%emt 0:00:04]} Rc4 {[%emt 0:00:03]} 48. c7 {[%emt 0:00:14]} Ke6 {[%emt 0:00:03]} 49. Bxa3 {[%emt 0:00:15]} Rxc7 {[%emt 0:00:04]} 50. Bb4 {[%emt 0:00:07]} Rc6 {[%emt 0:00:05]} 51. Bd2 {[%emt 0:00:23]} f6 {[%emt 0:00:03]} 52. Be3 {[%emt 0:00:08]} Kf5 {[%emt 0:00:03]} 53. Ra5+ {[%emt 0:00:05]} Kg6 {[%emt 0:00:03]} 54. Rd5 {[%emt 0:00:04]} Re6 {[%emt 0:00:03]} 55. Bd4 {[%emt 0:00:04]} Rc6 {[%emt 0:00:02]} 56. Rd8 {[%emt 0:00:06]} Re6 {[%emt 0:00:03]} 57. Kf3 {[%emt 0:00:07]} Rc6 {[%emt 0:00:04]} 58. Ke4 {[%emt 0:00:03]} Re6+ {[%emt 0:00:03]} 59. Kd5 {[%emt 0:00:04]} Re1 {[%emt 0:00:04]} 60. Rd6 {[%emt 0:00:05]} Rf1 {[%emt 0:00:04]} 61. Ke4 {[%emt 0:00:03]} a5 {[%emt 0:00:04]} 62. Ra6 {[%emt 0:00:04]} a4 {[%emt 0:00:03]} 63. Rxa4 {[%emt 0:00:03]} Rf4+ {[%emt 0:00:04]} 64. Kd5 {[%emt 0:00:04]} Rf3 {[%emt 0:00:05]} 65. Ra6 {[%emt 0:00:05]} Rxh3 {[%emt 0:00:14]} 66. Rxf6+ {[%emt 0:00:03]} Kh5 {[%emt 0:00:03]} 67. Be5 {[%emt 0:00:03]} Kg4 {[%emt 0:00:04]} 68. Rf1 {[%emt 0:00:04]} Rf3 {[%emt 0:00:04]} 69. Rh1 {[%emt 0:00:05]} Kf5 {[%emt 0:00:03]} 70. Rh8 {[%emt 0:00:03]} g4 {[%emt 0:00:06]} 71. Rg8 {[%emt 0:00:06]} Rd3+ {[%emt 0:00:03]} 72. Bd4 {[%emt 0:00:03]} Rf3 {[%emt 0:00:03]} 73. Bc5 {[%emt 0:00:06]} Rd3+ {[%emt 0:00:04]} 74. Bd4 {[%emt 0:00:03]} Rf3 {[%emt 0:00:02]} 75. Rf8+ {[%emt 0:00:06]} Kg5 {[%emt 0:00:04]} 76. Re8 {[%emt 0:00:02]} Kf5 {[%emt 0:00:03]} 77. Re5+ {[%emt 0:00:04]} Kf4 {[%emt 0:00:03]} 78. Re4+ {[%emt 0:00:03]} Kg5 {[%emt 0:00:07]} 79. Ke6 {[%emt 0:00:05]} g3 {[%emt 0:00:06]} 80. Be3+ {[%emt 0:00:07]} Kh5 {[%emt 0:00:04]} 81. Bg1 {[%emt 0:00:03]} Rf1 {[%emt 0:00:03]} 82. Bc5 {[%emt 0:00:05]} g2 {[%emt 0:00:04]} 83. Ra4 {[%emt 0:00:16]} 1/2-1/2

[Event "CCT Chessable Masters D-III 2024"]
[Site "Online"]
[Date "2024.02.02"]
[Round "2"]
[White "Rakhmanov_Aleksandr"]
[Black "Grischuk, Alexander"]
[Result "1/2-1/2"]
[ECO "D14"]
[WhiteElo "2632"]
[BlackElo "2732"]
[Annotator "RC"]
[PlyCount "56"]
[EventDate "2024.01.12"]
[EventType "k.o."]
[EventCountry "NET"]
[SourceTitle "playchess.com"]
[Source "ChessBase"]
[SourceQuality "1"]
[TimeControl "600+2"]

1. d4 {[%emt 0:00:10]} d5 {[%emt 0:00:05]} 2. c4 {[%emt 0:00:01]} c6 {[%emt 0:00:01]} 3. cxd5 {[%emt 0:00:02]} cxd5 {[%emt 0:00:00]} 4. Nf3 {[%emt 0:00:01]} Nf6 {[%emt 0:00:02]} 5. Nc3 {[%emt 0:00:01]} Nc6 {[%emt 0:00:01]} 6. Bf4 {[%emt 0:00:00]} Bf5 {[%emt 0:00:01]} 7. e3 {[%emt 0:00:02]} e6 {[%emt 0:00:02]} 8. Qb3 {[%emt 0:00:03]} Bb4 {[%emt 0:00:02]} 9. Ne5 {[%emt 0:00:02]} Bxc3+ {[%emt 0:00:15]} 10. bxc3 {[%emt 0:00:23]} Nxe5 {[%emt 0:01:02]} 11. Bxe5 {[%emt 0:00:03]} O-O {[%emt 0:00:02]} 12. Be2 {[%emt 0:00:05]} Rc8 {[%emt 0:01:16]} 13. O-O {[%emt 0:00:09]} Ne4 {[%emt 0:00:04]} 14. Rfc1 {[%emt 0:00:05]} Qh4 {[%emt 0:00:26]} 15. Bg3 {[%emt 0:00:13]} Qe7 {[%emt 0:00:16]} 16. a4 {[%emt 0:00:19]} a6 {[%emt 0:03:46]} 17. c4 {[%emt 0:02:36]} Nd2 {[%emt 0:00:41]} 18. Qa2 {[%emt 0:00:07]} Nxc4 {[%emt 0:00:04]} 19. Bxc4 {[%emt 0:00:07]} dxc4 {[%emt 0:00:05]} 20. Rxc4 {[%emt 0:00:03]} b5 {[%emt 0:00:17]} 21. axb5 {[%emt 0:00:16]} axb5 {[%emt 0:00:00]} 22. Rxc8 {[%emt 0:00:06]} Rxc8 {[%emt 0:00:00]} 23. Qa6 {[%emt 0:00:35]} Qd7 {[%emt 0:00:13]} 24. h4 {[%emt 0:00:20]} h6 {[%emt 0:00:21]} 25. Qd6 {[%emt 0:00:51]} Qb7 {[%emt 0:00:31]} 26. Qa6 {[%emt 0:00:25]} Qd7 {[%emt 0:00:13]} 27. Qd6 {[%emt 0:00:03]} Qb7 {[%emt 0:00:01]} 28. Qa6 {[%emt 0:00:01]} Qd7 {[%emt 0:00:19]} 1/2-1/2